bitfinex-derivatives/quotes_ETHF0:USTF0_20250426
["timestamp","ask_amount","ask_price","bid_price","bid_amount"]
[1745636020690,1.6838,1811.2,1811.1,4.78772]
[1745636021095,1.6838,1811.2,1811.1,3.684]
[1745636021298,1.6838,1811.2,1811.1,4.78772]
[1745636021995,1.6838,1811.2,1811.1,3.684]
[1745636022395,1.6838,1811.2,1811.1,4.78772]
[1745636022597,1.6838,1811.2,1811.1,6.49042]
[1745636023790,0.8097,1811.4,1811.2,1.10366]
[1745636023791,1.91328,1811.4,1811.2,1.10366]
[1745636023985,3.60088,1811.4,1811.2,2.80636]
[1745636024191,8.90888,1811.4,1811.2,1.7027]
[1745636024391,1.6876,1811.3,1811.2,1.7027]
[1745636024593,1.6876,1811.3,1811.1,4.78768]
[1745636024797,1.6876,1811.3,1811.1,6.49038]
[1745636025600,1.6876,1811.3,1811.2,1.10366]
[1745636026190,6.9956,1811.3,1811.2,1.10366]
[1745636027001,5.308,1811.3,1811.2,2.78796]
[1745636027190,3.2078,1811.5,1811.3,1.10359]
[1745636027191,4.31128,1811.5,1811.3,1.10359]
[1745636027395,1.6687,1811.4,1811.3,1.10359]
[1745636028400,4.7982,1811.7,1811.3,1.6843]
[1745636028701,6.4413,1811.7,1811.4,5.2926]
[1745636028901,6.4413,1811.7,1811.5,2.81748]
[1745636028902,1.6431,1811.6,1811.5,2.81748]
[1745636030796,1.6431,1811.6,1811.5,1.10348]
[1745636034299,1.6431,1811.6,1811.4,5.2926]
[1745636034601,1.6431,1811.6,1811.4,4.4748]
[1745636034802,1.10359,1811.4,1811.2,3.657]
[1745636035001,1.6123,1811.3,1811.2,4.76066]
[1745636038010,4.31123,1811.6,1811.2,3.657]
[1745636038203,2.83098,1811.5,1811.3,2.8359]
[1745636038413,2.83098,1811.5,1811.3,1.1036]
[1745636038414,1.7275,1811.4,1811.3,1.1036]
[1745636038911,1.7275,1811.4,1811.3,2.8359]
[1745636039098,3.2078,1811.6,1811.3,2.5454]
[1745636039303,1.7275,1811.5,1811.4,2.83584]
[1745636040412,1.7275,1811.5,1811.4,3.66384]
[1745636041407,1.7275,1811.5,1811.4,2.5603]
[1745636041813,1.7275,1811.5,1811.4,3.66384]
[1745636042307,1.7275,1811.5,1811.4,2.5603]
[1745636042517,1.7275,1811.5,1811.4,3.66384]
[1745636043920,1.7275,1811.5,1811.4,2.5603]
[1745636044513,1.7275,1811.5,1811.4,3.66384]
[1745636045513,1.7275,1811.5,1811.4,2.5603]
[1745636045919,2.83098,1811.5,1811.4,2.5603]
[1745636046218,1.7275,1811.5,1811.4,2.5603]
[1745636046421,1.7275,1811.5,1811.4,3.66384]
[1745636046919,1.7275,1811.5,1811.4,2.5603]
[1745636047426,1.7275,1811.5,1811.4,1.93154]
[1745636048126,1.7275,1811.5,1811.4,3.64014]
[1745636048620,1.5904,1811.7,1811.5,1.10346]
[1745636048815,1.6833,1811.6,1811.5,1.10346]
[1745636049019,2.75777,1812.2,1811.5,3.657]
[1745636049020,3.2078,1812.2,1811.5,3.657]
[1745636049222,1.10303,1812.3,1811.8,3.2078]
[1745636049423,4.31083,1812.3,1812.0,1.10317]
[1745636049620,1.5787,1812.2,1812.0,1.10317]
[1745636049810,1.5787,1812.2,1812.0,2.78647]
[1745636050015,1.5787,1812.2,1812.1,1.10311]
[1745636050223,6.8867,1812.2,1812.1,1.10311]
[1745636051218,1.5787,1812.2,1812.1,1.10311]
[1745636051409,1.5787,1812.2,1812.1,2.78641]
[1745636053614,1.6728,1812.5,1812.1,1.6833]
[1745636053821,1.6904,1812.4,1812.3,1.10294]
[1745636054122,6.9984,1812.4,1812.3,2.81024]
[1745636055315,6.9984,1812.4,1812.3,1.7073]
[1745636055518,6.9984,1812.4,1812.2,4.75902]
[1745636055719,5.308,1812.4,1812.2,4.75902]
[1745636056018,5.308,1812.4,1812.3,1.10299]
[1745636056317,6.9299,1812.4,1812.3,1.10299]
[1745636056918,6.9299,1812.4,1812.3,2.81849]
[1745636057520,6.9299,1812.4,1812.3,3.65379]
[1745636057721,5.308,1812.4,1812.3,9.47019]
[1745636058226,1.6219,1812.6,1812.5,1.10287]
[1745636058426,1.6219,1812.6,1812.5,4.75787]
[1745636059330,6.9299,1812.6,1812.5,4.75787]
[1745636060130,1.6219,1812.6,1812.5,4.75787]
[1745636060829,4.8305,1812.8,1812.7,1.10275]
[1745636061028,3.2078,1812.8,1812.6,2.82739]
[1745636061224,3.2078,1812.8,1812.5,3.655]
[1745636061225,1.10281,1812.6,1812.5,3.655]
[1745636061430,1.10293,1812.5,1812.2,3.2078]
[1745636061624,1.10297,1812.4,1812.2,4.31085]
[1745636061824,1.92401,1812.5,1812.2,4.31085]
[1745636062024,0.8211,1812.5,1812.3,1.10299]
[1745636062224,6.1291,1812.5,1812.3,1.10299]
[1745636062425,6.1291,1812.5,1812.4,1.10293]
[1745636063229,6.1291,1812.5,1812.3,1.6891]
[1745636063527,7.23198,1812.5,1812.2,3.2078]
[1745636063732,6.1291,1812.5,1812.3,1.10298]
[1745636064420,6.1291,1812.5,1812.2,3.2078]
[1745636064623,9.3369,1812.5,1811.9,0.8077]
[1745636064821,1.10307,1812.2,1812.0,4.75814]
[1745636065025,1.10307,1812.2,1812.0,3.655]
[1745636065231,1.92241,1812.1,1812.0,3.655]
[1745636065727,4.0271,1812.1,1811.7,0.7962]
[1745636065926,1.1032,1812.0,1811.7,5.55454]
[1745636066626,1.10325,1811.9,1811.7,5.55454]
[1745636066935,9.3351,1812.1,1811.7,5.55454]
[1745636066936,1.10322,1812.0,1811.7,5.55454]
[1745636067134,1.10325,1811.9,1811.7,5.55454]
[1745636067739,1.10325,1811.9,1811.6,9.62007]
[1745636068132,6.41125,1811.9,1811.6,9.62007]
[1745636068533,6.41125,1811.9,1811.7,1.10336]
[1745636069934,5.308,1811.9,1811.6,6.8628]
[1745636070234,1.10333,1811.8,1811.6,6.8628]
[1745636070534,1.92006,1811.7,1811.6,6.8628]
[1745636071137,0.8167,1811.7,1811.6,7.96622]
[1745636071329,1.92006,1811.7,1811.6,6.8628]
[1745636071937,1.92006,1811.7,1811.6,7.96622]
[1745636072235,0.8167,1811.7,1811.6,7.96622]
[1745636072535,4.31106,1811.9,1811.7,1.10336]
[1745636072735,4.31106,1811.9,1811.8,1.1033]
[1745636073036,4.31106,1811.9,1811.7,2.71981]
[1745636073235,9.61906,1811.9,1811.7,2.71981]
[1745636073633,8.5158,1811.9,1811.8,1.1033]
[1745636074333,1.95342,1812.0,1811.8,1.1033]
[1745636075930,0.8502,1812.0,1811.7,1.6165]
[1745636076126,1.95343,1812.0,1811.8,1.10329]
[1745636076733,1.95343,1812.0,1811.7,2.7198]
[1745636076934,1.95343,1812.0,1811.8,1.10329]
[1745636077135,0.8502,1812.0,1811.9,1.10323]
[1745636077536,4.31094,1812.1,1811.9,1.10323]
[1745636077737,4.31094,1812.1,1811.9,2.77793]
[1745636078133,9.61894,1812.1,1811.9,2.77793]
[1745636078332,1.7123,1812.0,1811.9,2.77793]
[1745636079238,7.0203,1812.0,1811.9,2.77793]
[1745636080242,7.0203,1812.0,1811.9,3.61393]
[1745636081137,4.0284,1812.3,1811.9,0.836]
[1745636081330,1.10317,1812.0,1811.9,0.836]
[1745636082236,6.41117,1812.0,1811.9,0.836]
[1745636082450,6.41117,1812.0,1811.8,5.55509]
[1745636082748,1.617,1811.9,1811.8,3.655]
[1745636083344,1.617,1811.9,1811.8,4.7583]
[1745636083542,1.10336,1811.7,1811.6,6.8628]
[1745636084142,8.12606,1811.7,1811.6,3.2078]
[1745636084348,1.10342,1811.6,1811.5,3.655]
[1745636084539,2.81812,1811.6,1811.5,3.655]
[1745636085051,1.7147,1811.6,1811.5,3.655]
[1745636085246,7.0227,1811.6,1811.5,4.75848]
[1745636086154,1.7147,1811.6,1811.5,4.75848]
[1745636086549,4.8397,1811.8,1811.6,1.10337]
[1745636086850,4.0475,1811.8,1811.6,2.75017]
[1745636087050,5.7943,1811.8,1811.6,4.42647]
[1745636087254,11.1023,1811.8,1811.6,4.42647]
[1745636087759,12.2056,1811.8,1811.6,3.3231]
[1745636088054,2.85016,1811.7,1811.6,1.6763]
[1745636088456,1.7468,1811.7,1811.6,1.6763]
[1745636089054,7.0548,1811.7,1811.6,1.6763]
[1745636089958,7.0548,1811.7,1811.6,4.36172]
[1745636090158,7.0548,1811.7,1811.6,3.2583]
[1745636090356,7.0548,1811.7,1811.5,4.75845]
[1745636090551,7.0548,1811.7,1811.6,2.68542]
[1745636092360,1.7468,1811.7,1811.6,2.68542]
[1745636094363,1.7468,1811.7,1811.6,1.582]
[1745636095158,7.0548,1811.7,1811.6,1.582]
[1745636095560,8.15816,1811.7,1811.6,1.582]
[1745636095759,7.0548,1811.7,1811.6,2.68542]
[1745636096066,7.0548,1811.7,1811.6,1.582]
[1745636098263,7.0548,1811.7,1811.6,2.68542]
[1745636098567,7.0548,1811.7,1811.6,1.582]
[1745636098768,7.0548,1811.7,1811.6,2.68542]
[1745636099165,1.7193,1811.9,1811.8,1.1033]
[1745636099871,1.7193,1811.9,1811.8,4.4402]
[1745636100167,1.7193,1811.9,1811.8,3.3369]
[1745636100168,7.0273,1811.9,1811.8,3.3369]
[1745636100375,8.13053,1811.9,1811.8,3.3369]
[1745636100575,8.13053,1811.9,1811.8,1.6489]
[1745636101074,7.0273,1811.9,1811.8,1.6489]
[1745636101766,7.0273,1811.9,1811.8,2.7522]
[1745636101965,7.0273,1811.9,1811.8,4.398]
[1745636103076,7.0273,1811.9,1811.8,3.2947]
[1745636103970,8.13053,1811.9,1811.8,1.6489]
[1745636104274,7.0273,1811.9,1811.8,1.6489]
[1745636104676,2.75762,1812.3,1811.8,1.6489]
[1745636104677,4.31038,1813.0,1812.6,1.10275]
[1745636104869,1.6984,1812.8,1812.7,1.10275]
[1745636105079,7.0064,1812.8,1812.7,1.10275]
[1745636106367,7.0064,1812.8,1812.6,1.7374]
[1745636106572,7.0064,1812.8,1812.4,4.7569]
[1745636106573,1.6984,1812.7,1812.4,4.7569]
[1745636106771,0.8039,1812.6,1812.3,0.811]
[1745636106971,1.6984,1812.5,1812.3,3.654]
[1745636107570,1.6984,1812.5,1812.2,4.75702]
[1745636108171,7.0064,1812.5,1812.2,1.10302]
[1745636108476,7.0064,1812.5,1811.9,5.56823]
[1745636108477,3.2078,1812.3,1811.9,5.56823]
[1745636108777,2.70838,1812.2,1811.9,5.56823]
[1745636109074,1.6294,1812.1,1811.9,5.56823]
[1745636109463,1.6294,1812.1,1812.0,1.10317]
[1745636110070,6.9374,1812.1,1812.0,1.10317]
[1745636110979,6.9374,1812.1,1811.9,5.5682]
[1745636111177,1.5804,1812.0,1811.9,5.5682]
[1745636111476,1.5804,1812.0,1811.9,0.811]
[1745636111675,1.5804,1812.0,1811.9,5.56823]
[1745636112178,6.8884,1812.0,1811.9,5.56823]
[1745636112876,0.23,1812.0,1811.9,13.77603]
[1745636113077,3.2078,1812.3,1812.2,1.10305]
[1745636113271,3.2078,1812.3,1812.2,4.75705]
[1745636114070,1.5804,1812.4,1812.3,1.10299]
[1745636114278,1.5804,1812.4,1812.3,3.57389]
[1745636115375,0.8602,1812.6,1812.3,5.6787]
[1745636115677,1.668,1812.5,1812.4,2.74038]
[1745636116570,0.8401,1812.7,1812.5,1.10281]
[1745636116771,1.5982,1812.6,1812.5,4.75681]
[1745636117474,1.5982,1812.6,1812.5,6.44871]
[1745636118178,1.5982,1812.6,1812.5,11.75671]
[1745636119071,0.8306,1812.8,1812.7,1.10275]
[1745636119266,2.4288,1812.8,1812.7,1.10275]
[1745636120175,1.10245,1813.2,1812.9,1.10261]
[1745636120384,2.4886,1813.2,1813.0,1.10256]
[1745636120878,1.6575,1813.1,1813.0,1.10256]
[1745636121272,4.31017,1813.4,1813.1,1.10249]
[1745636121474,1.6575,1813.2,1813.1,1.10249]
[1745636121675,1.6575,1813.2,1813.1,4.75549]
[1745636122074,3.2078,1813.4,1813.1,3.653]
[1745636122277,1.6575,1813.3,1813.1,3.653]
[1745636122477,0.8311,1813.5,1813.2,1.6016]
[1745636122673,1.6575,1813.6,1813.5,1.10226]
[1745636122879,0.8542,1813.8,1813.5,1.10226]
[1745636123075,0.8542,1813.8,1813.6,1.1022]
[1745636123274,0.8542,1813.8,1813.5,1.10222]
[1745636123482,0.8542,1813.8,1813.6,1.1022]
[1745636123681,1.95628,1813.8,1813.5,2.69372]
[1745636124277,7.26428,1813.8,1813.5,2.69372]
[1745636124785,7.26428,1813.8,1813.5,1.5915]
[1745636125085,6.1622,1813.8,1813.5,2.69373]
[1745636125275,7.26431,1813.8,1813.5,1.5915]
[1745636125471,7.26431,1813.8,1813.5,2.69375]
[1745636126179,4.062,1813.8,1813.4,3.653]
[1745636126384,1.10226,1813.5,1813.4,3.653]
[1745636126983,1.10222,1813.6,1813.4,3.653]
[1745636127379,1.10222,1813.6,1813.4,4.75532]
[1745636128079,4.31002,1813.6,1813.4,3.653]
[1745636128283,1.10222,1813.6,1813.4,4.75531]
[1745636129081,1.10222,1813.6,1813.4,3.653]
[1745636129282,1.10226,1813.5,1813.4,3.653]
[1745636129589,4.062,1813.8,1813.4,3.653]
[1745636129883,1.10226,1813.5,1813.4,3.653]
[1745636131085,4.062,1813.8,1813.2,1.7099]
[1745636131086,1.10238,1813.3,1813.2,1.7099]
[1745636131285,1.93997,1813.4,1813.2,5.3619]
[1745636132185,0.8376,1813.4,1813.2,2.81234]
[1745636132382,0.8376,1813.4,1813.2,8.06114]
[1745636132782,1.93995,1813.4,1813.2,8.06114]
[1745636132983,1.93995,1813.4,1813.2,5.3619]
[1745636133287,1.93995,1813.4,1813.2,6.46434]
[1745636134380,1.93994,1813.4,1813.2,6.46434]
[1745636134579,1.93994,1813.4,1813.2,8.06114]
[1745636137582,1.93994,1813.4,1813.3,1.704]
[1745636140890,1.10238,1813.3,1813.2,5.3619]
[1745636141192,2.73678,1813.3,1813.2,5.3619]
[1745636141380,1.6344,1813.3,1813.2,6.46434]
[1745636141579,2.73678,1813.3,1813.2,5.3619]
[1745636141994,2.73678,1813.3,1813.2,6.46434]
[1745636142393,1.6344,1813.3,1813.2,6.46434]
[1745636143887,2.73678,1813.3,1813.2,5.3619]
[1745636145186,1.6344,1813.3,1813.2,8.08174]
[1745636146285,1.6344,1813.3,1813.2,6.9793]
[1745636146495,2.73678,1813.3,1813.2,6.9793]
[1745636149097,2.73678,1813.3,1813.2,5.3619]
[1745636149490,2.73678,1813.3,1813.2,1.7099]
[1745636151389,1.6344,1813.3,1813.2,1.7099]
[1745636151691,2.73678,1813.3,1813.2,1.7099]
[1745636152992,1.6344,1813.3,1813.2,4.40804]
[1745636153193,2.73678,1813.3,1813.2,3.3056]
[1745636154292,2.73678,1813.3,1813.0,3.2078]
[1745636154293,1.1025,1813.1,1813.0,3.2078]
[1745636154597,1.10262,1813.0,1812.8,6.0924]
[1745636154794,1.10263,1812.9,1812.8,6.0924]
[1745636156898,2.78681,1813.0,1812.8,7.19507]
[1745636157293,1.6842,1813.0,1812.9,1.10263]
[1745636157494,3.2078,1813.1,1813.0,1.10257]
[1745636157892,3.2078,1813.1,1812.9,1.6885]
[1745636158089,3.2078,1813.1,1813.0,1.10257]
[1745636158491,3.2078,1813.1,1812.9,2.79108]
[1745636158891,3.2078,1813.1,1813.0,1.6885]
[1745636159388,4.3103,1813.1,1813.0,1.6885]
[1745636159698,5.8926,1813.1,1813.0,1.6885]
[1745636160486,4.7901,1813.1,1812.8,5.54378]
[1745636160686,2.68489,1813.0,1812.8,6.1501]
[1745636160887,2.68493,1812.9,1812.8,6.1501]
[1745636163398,1.5823,1812.9,1812.8,6.1501]
[1745636163899,2.68493,1812.9,1812.8,6.1501]
[1745636164401,1.5823,1812.9,1812.8,6.1501]
[1745636164593,2.68493,1812.9,1812.8,6.1501]
[1745636164996,1.10275,1812.7,1812.6,3.652]
[1745636172402,2.71015,1812.7,1812.6,3.652]
[1745636172804,1.10287,1812.5,1812.4,4.4736]
[1745636173005,1.10287,1812.5,1812.4,3.652]
[1745636173305,1.10299,1812.3,1812.2,4.4402]
[1745636173892,2.71039,1812.3,1812.2,4.4402]
[1745636174302,2.71039,1812.3,1812.2,3.652]
[1745636175098,2.71039,1812.3,1812.2,5.3165]
[1745636179901,1.10294,1812.4,1812.2,6.41951]
[1745636180101,1.10299,1812.3,1812.2,3.652]
[1745636181898,1.10305,1812.2,1812.1,4.8371]
[1745636182107,2.69905,1812.2,1812.1,4.8371]
[1745636182510,2.69905,1812.2,1812.1,1.6293]
[1745636183902,2.69905,1812.2,1812.0,11.69977]
[1745636184100,1.6469,1812.1,1812.0,13.37677]
[1745636184603,2.75001,1812.1,1812.0,6.9446]
[1745636184804,3.60821,1812.1,1812.0,6.9446]
[1745636185214,3.60821,1812.1,1812.0,1.6366]
[1745636188213,2.75794,1812.0,1811.3,9.1478]
[1745636188409,1.10342,1811.6,1811.5,0.813]
[1745636188908,1.10342,1811.6,1811.5,2.4027]
[1745636190615,2.7471,1811.7,1811.5,3.50612]
[1745636190815,4.31114,1811.8,1811.6,2.80009]
[1745636191114,4.31114,1811.8,1811.7,1.6967]
[1745636191716,3.2078,1811.8,1811.7,1.6967]
[1745636191915,1.10327,1811.9,1811.7,2.80006]
[1745636192113,1.10327,1811.9,1811.7,6.45306]
[1745636192315,1.10327,1811.9,1811.8,2.4868]
[1745636193504,2.78977,1811.9,1811.8,2.4868]
[1745636201114,1.1033,1811.8,1811.7,3.653]
[1745636201318,4.8228,1811.8,1810.1,2.76077]
[1745636201519,3.2078,1810.9,1810.3,3.363]
[1745636201716,1.10415,1810.4,1810.3,3.363]
[1745636202822,1.10415,1810.4,1810.1,1.10433]
[1745636203014,1.10415,1810.4,1810.1,1.6888]
[1745636203015,1.10427,1810.2,1810.1,1.6888]
[1745636203416,2.82927,1810.2,1810.1,1.6888]
[1745636204316,1.725,1810.2,1810.1,1.6888]
[1745636204812,2.82927,1810.2,1810.1,1.6888]
[1745636205525,1.725,1810.2,1810.1,1.6888]
[1745636205726,2.82927,1810.2,1810.1,1.6888]
[1745636206025,1.725,1810.2,1810.1,1.6888]
[1745636207519,3.2078,1810.6,1810.1,6.6888]
[1745636207722,1.6223,1810.7,1810.5,1.10408]
[1745636208225,4.31171,1810.8,1810.6,2.4824]
[1745636208425,3.2078,1810.8,1810.7,1.7276]
[1745636208813,4.3117,1810.8,1810.7,1.7276]
[1745636209017,3.2078,1810.8,1810.7,1.7276]
[1745636209520,4.9393,1810.8,1810.7,1.7276]
[1745636210427,1.7315,1810.8,1810.7,2.83157]
[1745636210627,1.7315,1810.8,1810.7,1.7276]
[1745636210816,1.7315,1810.8,1810.7,2.83157]
[1745636211421,1.7315,1810.8,1810.7,1.7276]
[1745636211624,2.8354,1810.8,1810.7,1.7276]
[1745636211825,6.0432,1810.8,1810.7,1.7276]
[1745636212729,4.9393,1810.8,1810.7,1.7276]
[1745636213124,6.0432,1810.8,1810.7,1.7276]
[1745636213329,4.9393,1810.8,1810.7,1.7276]
[1745636214027,4.9393,1810.8,1810.6,0.8644]
[1745636214227,1.10403,1810.6,1810.5,3.655]
[1745636214434,1.10417,1810.4,1810.2,5.3081]
[1745636214730,3.2078,1810.4,1810.2,1.6381]
[1745636215037,1.7252,1810.7,1810.5,1.10403]
[1745636215235,1.7252,1810.7,1810.6,1.7374]
[1745636221429,1.7252,1810.7,1810.6,2.84143]
[1745636222837,2.82917,1810.7,1810.6,1.7374]
[1745636223429,1.7252,1810.7,1810.2,5.3081]
[1745636223635,1.10418,1810.4,1810.2,8.05024]
[1745636223824,1.6779,1810.3,1810.2,8.05024]
[1745636225329,1.6779,1810.3,1810.2,5.3081]
[1745636225532,3.2078,1810.5,1810.2,5.3081]
[1745636225743,4.8857,1810.5,1810.4,1.10415]
[1745636228830,5.98982,1810.5,1810.3,2.74209]
[1745636229030,1.718,1810.4,1810.3,2.74209]
[1745636229431,1.718,1810.4,1810.3,1.6379]
[1745636230327,1.10421,1810.3,1810.2,1.6381]
[1745636230532,1.718,1810.4,1810.2,1.10427]
[1745636230728,1.718,1810.4,1810.2,4.42817]
[1745636230933,2.82217,1810.4,1810.2,4.42817]
[1745636231139,2.82217,1810.4,1810.3,1.6648]
[1745636232839,1.718,1810.4,1810.3,2.76901]
[1745636233041,3.2078,1810.5,1810.4,1.10415]
[1745636233240,3.2078,1810.5,1810.4,2.75045]
[1745636233439,3.2078,1810.5,1810.4,1.6463]
[1745636233832,3.2078,1810.5,1810.4,2.75045]
[1745636233833,4.8991,1810.5,1810.4,2.75045]
[1745636234034,6.00319,1810.5,1810.3,6.41221]
[1745636234244,6.00319,1810.5,1810.2,1.6591]
[1745636234245,1.6913,1810.4,1810.2,3.3054]
[1745636234445,1.6913,1810.4,1810.3,1.10421]
[1745636236136,1.6913,1810.4,1810.3,2.84251]
[1745636236340,3.2078,1810.5,1810.4,1.10415]
[1745636236540,3.2078,1810.5,1810.4,2.84245]
[1745636237140,1.7027,1810.6,1810.4,2.84245]
[1745636237343,3.2078,1810.5,1810.4,2.84245]
[1745636238148,1.7027,1810.6,1810.4,2.84245]
[1745636238342,2.80673,1810.6,1810.4,2.84245]
[1745636238544,1.7027,1810.6,1810.4,2.84245]
[1745636238744,1.7144,1810.5,1810.4,2.84245]
[1745636239750,0.8048,1811.0,1810.4,10.4083]
[1745636239943,6.02593,1811.1,1810.8,1.10387]
[1745636240147,1.7144,1811.0,1810.9,3.49134]
[1745636240450,2.81823,1811.0,1810.8,3.67]
[1745636240649,4.31164,1810.9,1810.8,3.67]
[1745636240851,6.02604,1810.9,1810.8,3.67]
[1745636241150,6.83984,1810.9,1810.8,3.67]
[1745636241639,6.83984,1810.9,1810.5,3.664]
[1745636241640,1.10406,1810.6,1810.5,3.664]
[1745636242038,3.2078,1810.7,1810.3,0.8551]
[1745636242251,3.2078,1810.4,1810.3,3.664]
[1745636242550,3.2078,1810.4,1810.3,4.76821]
[1745636242742,5.7038,1810.4,1810.3,4.76821]
[1745636243951,2.496,1810.4,1810.3,4.76821]
[1745636244154,1.6339,1810.4,1810.3,4.76821]
[1745636244340,4.8417,1810.4,1810.3,3.664]
[1745636244543,5.7038,1810.4,1810.3,3.664]
[1745636245651,6.80795,1810.4,1810.3,3.664]
[1745636246854,5.7038,1810.4,1810.3,3.664]
[1745636247047,2.496,1810.4,1810.3,3.664]
[1745636248048,2.496,1810.4,1810.3,4.76821]
[1745636248249,2.496,1810.4,1810.3,3.664]
[1745636248455,3.60015,1810.4,1810.3,3.664]
[1745636248753,6.80795,1810.4,1810.3,3.664]
[1745636250951,1.10433,1810.1,1809.9,6.45333]
[1745636251254,13.46421,1810.4,1810.0,1.10437]
[1745636251255,4.31209,1810.2,1810.0,1.10437]
[1745636251456,1.5767,1810.1,1810.0,1.10437]
[1745636251658,3.2078,1810.2,1810.1,2.71993]
[1745636254363,3.2078,1810.2,1810.1,1.6156]
[1745636255056,3.2078,1810.2,1810.1,2.71993]
[1745636256465,4.31207,1810.2,1810.1,1.6156]
[1745636256661,3.2078,1810.2,1809.9,5.3289]
[1745636256865,4.31209,1810.2,1810.0,1.10439]
[1745636257365,1.10435,1810.1,1809.9,6.43332]
[1745636257557,3.2078,1810.2,1809.9,3.665]
[1745636257758,1.10438,1810.1,1809.9,3.665]
[1745636259358,1.10439,1810.0,1809.9,3.665]
[1745636259562,4.31219,1810.0,1809.9,3.665]
[1745636260364,3.2078,1810.0,1809.9,4.76945]
[1745636261565,1.10437,1810.1,1809.9,4.76945]
[1745636263760,4.31212,1810.2,1810.0,1.10439]
[1745636264467,1.10433,1810.1,1809.9,6.46861]
[1745636265366,1.10464,1809.7,1809.6,3.665]
[1745636265559,4.31244,1809.7,1809.6,3.665]
[1745636266070,3.2078,1809.7,1809.4,4.5352]
[1745636266258,4.31238,1809.7,1809.5,1.1047]
[1745636266459,1.10464,1809.6,1809.5,1.5865]
[1745636266663,1.10464,1809.6,1809.4,5.63992]
[1745636267369,0.8329,1809.6,1809.4,9.8432]
[1745636267561,3.2078,1809.7,1809.6,1.10464]
[1745636268367,3.2078,1809.7,1809.6,1.95374]
[1745636269668,3.2078,1809.7,1809.6,3.68414]
[1745636271372,4.7874,1809.7,1809.6,3.68414]
[1745636271573,2.68418,1809.7,1809.6,0.8491]
[1745636272370,5.89198,1809.7,1809.6,0.8491]
[1745636272673,4.7874,1809.7,1809.6,1.95374]
[1745636272868,4.31227,1809.9,1809.7,1.10454]
[1745636273170,5.97367,1809.9,1809.8,2.5923]
[1745636274076,5.97367,1809.9,1809.8,3.69681]
[1745636274575,1.10454,1809.8,1809.6,1.95368]
[1745636274774,3.2078,1809.7,1809.6,1.95368]
[1745636274973,3.2078,1809.7,1809.6,3.69578]
[1745636275166,4.8692,1809.7,1809.6,3.69578]
[1745636276070,1.6614,1809.7,1809.6,3.69578]
[1745636276271,3.2078,1809.7,1809.6,3.69578]
[1745636282066,4.8146,1809.9,1809.7,1.10455]
[1745636282477,1.6837,1809.8,1809.7,1.10455]
[1745636285072,1.6837,1809.8,1809.7,2.83505]
[1745636285482,3.2078,1809.9,1809.8,1.10451]
[1745636285683,3.2078,1810.1,1810.0,1.10439]
[1745636286286,1.5864,1810.2,1810.1,1.10433]
[1745636291190,1.5864,1810.2,1810.0,4.76135]
[1745636291191,7.69067,1810.2,1810.0,4.76135]
[1745636291487,4.0402,1810.1,1810.0,4.76135]
[1745636291688,5.77,1810.1,1810.0,4.76135]
[1745636295401,4.9376,1810.1,1810.0,4.76135]
[1745636300504,6.04193,1810.1,1810.0,3.657]
[1745636300700,6.04193,1810.1,1809.7,1.6564]
[1745636300701,1.10445,1809.9,1809.7,3.657]
[1745636300900,0.8469,1809.8,1809.7,3.657]
[1745636301197,2.4906,1809.8,1809.7,4.76158]
[1745636302590,3.3551,1809.8,1809.7,4.76158]
[1745636304399,3.3551,1809.8,1809.5,0.8016]
[1745636304697,3.2078,1809.6,1809.5,4.4586]
[1745636304904,4.31244,1809.6,1809.5,3.657]
[1745636305405,1.10472,1809.5,1809.3,4.76181]
[1745636305606,4.0398,1809.4,1809.3,4.76181]
[1745636306201,5.7591,1809.4,1809.3,4.76181]
[1745636309898,4.9271,1809.4,1809.3,4.76181]
[1745636310707,4.9271,1809.4,1809.3,5.62951]
[1745636311099,4.9271,1809.4,1809.3,10.93751]
[1745636312105,4.9271,1809.4,1809.3,5.62951]
[1745636313007,3.2078,1809.4,1809.3,5.62951]
[1745636313309,3.2078,1809.4,1809.3,10.93751]
[1745636313901,1.6717,1809.5,1809.4,1.10476]
[1745636316510,1.6717,1809.5,1809.4,1.96796]
[1745636317701,1.6717,1809.5,1809.4,3.69116]
[1745636334519,1.6717,1809.5,1809.4,1.96796]
[1745636337920,1.7118,1809.8,1809.7,1.10458]
[1745636337921,3.2078,1809.8,1809.7,1.10458]
[1745636338123,3.2078,1809.8,1809.7,10.06958]
[1745636338720,3.2078,1809.8,1809.7,11.64498]
[1745636344127,3.2078,1809.8,1809.7,10.06958]
[1745636344322,4.31231,1809.8,1809.7,8.965]
[1745636344519,6.69721,1809.8,1809.7,8.965]
[1745636345025,6.69721,1809.8,1809.7,5.308]
[1745636345227,12.00521,1809.8,1809.6,1.10464]
[1745636345521,1.6054,1809.7,1809.6,1.10464]
[1745636346325,1.6054,1809.7,1809.6,1.95054]
[1745636349018,3.2078,1809.8,1809.7,1.10458]
[1745636349227,3.2078,1809.8,1809.7,2.82478]
[1745636349525,3.2078,1809.8,1809.7,1.10458]
[1745636349932,4.8828,1809.8,1809.7,1.10458]
[1745636350622,5.98734,1809.8,1809.6,3.6707]
[1745636350827,1.675,1809.7,1809.6,1.9505]